bitfinex/quotes_SOLUSD_20241008
["timestamp","ask_amount","ask_price","bid_price","bid_amount"]
[1728386441850,0.72223131,144.52,144.51,50.696784]
[1728386442150,0.72223131,144.52,144.51,63.61231535]
[1728386445762,0.72223131,144.52,144.51,64.99586347]
[1728386447064,0.72223131,144.52,144.51,63.61231535]
[1728386448454,0.72223131,144.52,144.51,50.696784]
[1728386448667,0.72223131,144.52,144.51,63.61231535]
[1728386450359,0.72223131,144.52,144.51,68.34069428]
[1728386451940,0.72223131,144.52,144.51,33.03175117]
[1728386452147,0.72223131,144.52,144.51,68.34069428]
[1728386453038,0.72223131,144.52,144.51,67.48040914]
[1728386453256,0.72223131,144.52,144.51,72.2116528]
[1728386456659,0.72223131,144.52,144.51,72.22740822]
[1728386457039,0.72223131,144.52,144.51,73.6109189]
[1728386457760,0.72223131,144.52,144.51,35.53499287]
[1728386458538,0.72223131,144.52,144.51,48.45052422]
[1728386460166,0.72223131,144.52,144.51,72.22740822]
[1728386460568,0.72223131,144.52,144.51,35.53499287]
[1728386464066,0.72223131,144.52,144.51,31.65981427]
[1728386464256,0.72223131,144.52,144.51,35.54803895]
[1728386466145,0.72223131,144.52,144.51,35.56532146]
[1728386467274,0.72223131,144.52,144.51,40.66236657]
[1728386467492,0.72223131,144.52,144.51,36.77505782]
[1728386467673,0.72223131,144.52,144.51,40.66510725]
[1728386468670,0.72223131,144.52,144.51,53.5806386]
[1728386470051,0.72223131,144.52,144.51,78.7411247]
[1728386470871,0.72223131,144.52,144.51,77.3575226]
[1728386471048,0.72223131,144.52,144.51,63.57584702]
[1728386471249,0.72223131,144.52,144.51,77.32474595]
[1728386471455,0.72223131,144.52,144.51,78.70823071]
[1728386472064,0.72223131,144.52,144.51,77.45023595]
[1728386474479,0.72223131,144.52,144.51,63.70133702]
[1728386474768,0.72223131,144.52,144.51,77.46535207]
[1728386475003,0.72223131,144.52,144.51,64.54982072]
[1728386475167,0.72223131,144.52,144.51,77.46535207]
[1728386476457,0.72223131,144.52,144.51,64.54982072]
[1728386476775,0.72223131,144.52,144.51,77.46535207]
[1728386477980,0.72223131,144.52,144.51,50.66031567]
[1728386478190,0.72223131,144.52,144.51,35.89269027]
[1728386478353,0.72223131,144.52,144.51,40.65142428]
[1728386478556,0.72223131,144.52,144.51,20.65142428]
[1728386480373,0.72223131,144.52,144.51,13.76799261]
[1728386480772,0.72223131,144.52,144.5,6.9202]
[1728386480957,0.72223131,144.52,144.49,17.3019]
[1728386481157,0.72223131,144.52,144.5,13.7706993]
[1728386481486,0.72223131,144.52,144.49,24.2226]
[1728386481785,0.72223131,144.52,144.5,5.11940525]
[1728386481966,0.72223131,144.52,144.49,24.2226]
[1728386482162,0.72223131,144.52,144.49,17.3019]
[1728386482370,0.72223131,144.52,144.5,6.9203]
[1728386483565,0.72223131,144.52,144.51,6.9199]
[1728386484284,0.72223131,144.52,144.51,8.30371986]
[1728386484664,0.72223131,144.52,144.51,6.9199]
[1728386485080,0.72223131,144.52,144.5,10.80546213]
[1728386485281,0.72223131,144.52,144.5,6.9203]
[1728386485660,0.72223131,144.52,144.5,11.67205073]
[1728386486469,0.72223131,144.52,144.5,11.67133174]
[1728386486873,0.72223131,144.52,144.5,6.9203]
[1728386490092,0.72223131,144.52,144.48,6.9213]
[1728386490267,6.9199,144.51,144.48,6.9213]
[1728386490671,0.72223131,144.52,144.48,6.9213]
[1728386490672,6.9205,144.5,144.48,3.88323335]
[1728386490875,6.9205,144.5,144.47,8.63333437]
[1728386491094,6.9209,144.49,144.47,4.75010102]
[1728386491390,6.9209,144.49,144.46,25.93856074]
[1728386491590,6.9209,144.49,144.46,22.05503607]
[1728386491800,6.9209,144.49,144.46,17.3049]
[1728386492974,6.9209,144.49,144.46,24.2271]
[1728386495698,0.72223131,144.52,144.51,6.9199]
[1728386496078,0.72223131,144.52,144.5,17.3008]
[1728386496287,0.72223131,144.52,144.5,24.221]
[1728386498988,0.72223131,144.52,144.47,17.3037]
[1728386499187,0.72223131,144.52,144.48,3.88144272]
[1728386499895,0.72223131,144.52,144.47,21.18514272]
[1728386500075,0.72223131,144.52,144.49,6.9205]
[1728386500684,0.72223131,144.52,144.49,24.2226]
[1728386503409,0.72223131,144.52,144.49,17.3021]
[1728386503611,0.72223131,144.52,144.5,6.9203]
[1728386503983,0.72223131,144.52,144.51,6.9199]
[1728386505785,0.72223131,144.52,144.51,8.30356969]
[1728386506186,0.72223131,144.52,144.51,6.9199]
[1728386506386,0.72223131,144.52,144.51,8.30357167]
[1728386507106,0.72223131,144.52,144.51,6.9199]
[1728386507293,0.72223131,144.52,144.51,8.30357049]
[1728386508908,0.72223131,144.52,144.51,6.9199]
[1728386509122,0.72223131,144.52,144.51,8.30356963]
[1728386509609,0.72223131,144.52,144.51,10.79998205]
[1728386511896,0.72223131,144.52,144.51,6.9199]
[1728386513209,0.72223131,144.52,144.51,10.79998205]
[1728386513406,0.72223131,144.52,144.51,6.9199]
[1728386513590,0.72223131,144.52,144.51,10.79998205]
[1728386513795,0.72223131,144.52,144.51,6.9199]
[1728386514515,0.72223131,144.52,144.51,10.80116858]
[1728386514816,0.72223131,144.52,144.51,6.9199]
[1728386515018,0.72223131,144.52,144.51,10.80116858]
[1728386515216,0.72223131,144.52,144.51,6.9199]
[1728386515515,0.72223131,144.52,144.51,10.80116858]
[1728386515713,0.72223131,144.52,144.51,6.9199]
[1728386515914,0.72223131,144.52,144.51,10.80116858]
[1728386516115,0.72223131,144.52,144.51,6.9199]
[1728386516314,0.72223131,144.52,144.51,10.80116858]
[1728386516615,0.72223131,144.52,144.51,6.9199]
[1728386516822,0.72223131,144.52,144.51,10.80195266]
[1728386517214,0.72223131,144.52,144.51,6.9199]
[1728386517409,0.72223131,144.52,144.51,10.80195266]
[1728386517709,0.72223131,144.52,144.51,6.9199]
[1728386518017,0.72223131,144.52,144.51,12.18563392]
[1728386518196,0.72223131,144.52,144.51,8.30358126]
[1728386518398,0.72223131,144.52,144.51,10.80195266]
[1728386518591,0.72223131,144.52,144.51,6.9199]
[1728386518796,0.72223131,144.52,144.51,10.80195266]
[1728386519010,0.72223131,144.52,144.51,12.18563456]
[1728386519215,0.72223131,144.52,144.51,10.80195266]
[1728386520404,0.72223131,144.52,144.51,6.9199]
[1728386520612,0.72223131,144.52,144.51,10.80390293]
[1728386520920,0.72223131,144.52,144.51,12.18758543]
[1728386521501,0.72223131,144.52,144.51,10.80390293]
[1728386522208,0.72223131,144.52,144.51,3.88400293]
[1728386522411,0.72223131,144.52,144.5,3.88400293]
[1728386522717,0.72223131,144.52,144.49,24.2225]
[1728386522919,0.72223131,144.52,144.5,3.88884962]
[1728386523230,0.72223131,144.52,144.49,24.2228]
[1728386523400,0.72223131,144.52,144.5,3.88937615]
[1728386523598,0.72223131,144.52,144.49,24.2228]
[1728386523913,0.72223131,144.52,144.5,3.88970362]
[1728386524121,0.72223131,144.52,144.49,24.2228]
[1728386524322,0.72223131,144.52,144.5,3.89023512]
[1728386524515,0.72223131,144.52,144.49,24.2228]
[1728386524818,0.72223131,144.52,144.5,3.89023512]
[1728386525034,0.72223131,144.52,144.49,24.2228]
[1728386525203,0.72223131,144.52,144.5,3.89022317]
[1728386525514,0.72223131,144.52,144.49,24.2228]
[1728386525719,0.72223131,144.52,144.5,3.89020076]
[1728386525924,0.72223131,144.52,144.48,6.9212]
[1728386525925,7.64203131,144.52,144.48,6.9212]
[1728386526225,7.64203131,144.52,144.49,3.89088107]
[1728386526430,7.64203131,144.52,144.48,6.9212]
[1728386526721,6.92,144.51,144.49,3.89073999]
[1728386526925,6.92,144.51,144.48,6.9212]
[1728386527127,6.92,144.51,144.49,3.89109095]
[1728386527300,6.92,144.51,144.47,6.9215]
[1728386527501,6.9208,144.5,144.48,3.89196965]
[1728386527701,6.9204,144.5,144.49,3.89196965]
[1728386528015,6.9204,144.5,144.46,6.9222]
[1728386530410,18.02103131,144.52,144.46,6.9222]
[1728386530608,6.9209,144.49,144.46,6.9222]
[1728386532932,6.9209,144.49,144.45,17.3066]
[1728386533124,18.02103131,144.52,144.44,6.9231]
[1728386533125,6.9214,144.48,144.44,6.9231]
[1728386533314,6.9218,144.47,144.43,10.81205505]
[1728386533514,6.9218,144.47,144.43,10.81187779]
[1728386533736,6.9215,144.48,144.44,6.9232]
[1728386536934,0.12549,144.5,144.43,6.9237]
[1728386536935,6.9223,144.46,144.43,6.9237]
[1728386537136,15.981,144.48,144.42,17.3097]
[1728386537330,6.9229,144.45,144.42,17.3097]
[1728386537519,0.12549,144.47,144.4,6.9251]
[1728386537724,6.9238,144.43,144.39,28.12236953]
[1728386537917,6.9238,144.43,144.39,24.2382]
[1728386538816,6.5091,144.46,144.39,17.313]
[1728386538817,6.9245,144.42,144.39,17.313]
[1728386539227,6.9239,144.43,144.39,17.313]
[1728386539438,6.9239,144.43,144.39,24.2385]
[1728386539738,6.9242,144.42,144.39,24.2385]
[1728386539918,6.9242,144.42,144.38,6.9259]
[1728386540123,6.9242,144.42,144.36,17.317]
[1728386540124,21.9458,144.41,144.37,6.9264]
[1728386540310,6.9255,144.4,144.36,24.244]
[1728386543221,15.0207,144.41,144.38,17.315]
[1728386544242,15.9297,144.45,144.39,14.30054993]
[1728386544436,6.9233,144.44,144.4,6.9249]
[1728386551026,15.9297,144.45,144.38,17.315]
[1728386551238,6.9244,144.42,144.38,17.315]
[1728386551422,6.9244,144.42,144.39,6.9256]
[1728386558533,6.9244,144.42,144.38,24.2408]
[1728386560948,15.9297,144.45,144.38,24.2408]
[1728386561140,6.925,144.41,144.38,17.315]
[1728386561852,6.925,144.41,144.38,25.62606819]
[1728386562035,6.9243,144.42,144.38,25.62606819]
[1728386562861,6.9243,144.42,144.38,24.241]
[1728386567066,6.9234,144.44,144.41,6.9246]
[1728386567230,0.12549,144.46,144.41,6.9246]
[1728386567436,6.9229,144.45,144.41,6.9246]
[1728386569438,6.9234,144.44,144.4,24.2377]
[1728386570751,6.9234,144.44,144.4,24.21024852]
[1728386571939,6.9238,144.43,144.4,24.21024852]
[1728386572262,6.9238,144.43,144.4,17.28524852]
[1728386575765,6.9242,144.42,144.39,6.9255]
[1728386576342,6.9242,144.42,144.39,10.82130609]
[1728386576546,6.9242,144.42,144.39,6.9255]
[1728386577251,6.9242,144.42,144.39,10.82351358]
[1728386577453,6.9242,144.42,144.39,6.9255]
[1728386577655,6.9242,144.42,144.39,10.82351358]
[1728386577973,6.9237,144.44,144.4,6.9248]
[1728386578272,6.9237,144.43,144.4,10.82359307]
[1728386578772,6.9237,144.43,144.4,6.9248]
[1728386578942,6.9237,144.43,144.39,25.62385229]
[1728386579147,6.9237,144.43,144.4,3.89859964]
[1728386579362,6.9237,144.43,144.39,24.2389]
[1728386579569,6.9237,144.43,144.39,25.62384925]
[1728386579969,6.9237,144.43,144.39,24.2389]
[1728386580345,6.9233,144.44,144.4,6.9249]
[1728386581259,0.12549,144.45,144.4,6.9249]
[1728386581460,6.9238,144.43,144.39,25.6238483]
[1728386581666,6.9238,144.43,144.39,24.2389]
[1728386583675,6.9238,144.43,144.4,8.31004867]
[1728386583868,6.9234,144.44,144.4,8.31004867]
[1728386584052,6.9234,144.44,144.41,6.9247]
[1728386584963,6.9234,144.44,144.4,6.925]
[1728386586169,6.9215,144.48,144.44,6.9232]
[1728386586372,7.22360638,144.49,144.44,12.91553135]
[1728386586550,8.12584471,144.51,144.46,12.91553135]
[1728386586551,6.9199,144.51,144.46,12.91553135]
[1728386586754,6.9199,144.51,144.47,8.30599743]
[1728386586955,6.9199,144.51,144.46,19.83753135]
[1728386587378,6.9199,144.51,144.46,21.22176892]
[1728386587859,6.9199,144.51,144.46,6.922]
[1728386588464,0.72223131,144.52,144.45,17.3064]
[1728386588767,6.9214,144.48,144.44,6.9231]
[1728386590474,6.9218,144.47,144.43,13.5759]
[1728386592252,6.9223,144.46,144.42,24.2335]
[1728386593760,6.9233,144.44,144.41,16.1451]
[1728386597286,6.9233,144.44,144.4,6.925]
[1728386598166,0.12549,144.46,144.4,6.925]
[1728386598360,6.9238,144.43,144.4,6.925]
[1728386603964,6.9234,144.44,144.4,6.925]
[1728386608067,6.9234,144.44,144.4,8.30984915]
[1728386611082,6.9234,144.44,144.4,6.925]
[1728386612488,6.9234,144.44,144.4,8.3098472]
[1728386612691,6.9234,144.44,144.4,6.925]
[1728386612895,6.9234,144.44,144.4,8.3098467]
[1728386618582,6.9234,144.44,144.4,6.925]
[1728386620892,6.924,144.43,144.39,24.239]
[1728386621392,6.924,144.43,144.4,6.9251]
[1728386622175,6.9234,144.44,144.4,6.9251]
[1728386622694,6.9234,144.44,144.39,17.3135]
[1728386622879,6.9234,144.44,144.41,6.9246]
[1728386626791,6.9234,144.44,144.4,8.30974739]
[1728386626998,6.9234,144.44,144.4,6.9249]
[1728386633014,6.9238,144.43,144.39,17.3135]
[1728386633191,0.12549,144.46,144.39,24.239]
[1728386633396,0.12549,144.46,144.4,4.83566064]
[1728386633603,6.9238,144.43,144.39,24.239]
[1728386633796,6.9238,144.43,144.4,11.76247268]
[1728386633996,6.9238,144.43,144.4,6.9251]
[1728386634207,0.12549,144.46,144.4,6.9251]
[1728386634410,6.9234,144.44,144.4,6.9251]
[1728386639705,6.9234,144.44,144.41,3.90781993]
[1728386639890,6.9234,144.44,144.42,3.90781993]
[1728386640092,6.9234,144.44,144.4,6.9251]
[1728386640390,6.9234,144.44,144.41,3.90797237]
[1728386640592,6.9234,144.44,144.42,3.90797237]
[1728386640792,6.9234,144.44,144.4,6.9251]
[1728386641094,6.9234,144.44,144.41,3.90814353]
[1728386641301,6.9234,144.44,144.42,3.90814353]
[1728386641502,6.9234,144.44,144.4,6.9251]
[1728386641701,6.9234,144.44,144.41,3.9081699]
[1728386641900,6.9234,144.44,144.42,3.9081699]
[1728386642104,6.9234,144.44,144.4,6.9251]
[1728386642291,6.9234,144.44,144.41,3.90818812]
[1728386642590,6.9234,144.44,144.42,3.90818812]
[1728386642787,6.9234,144.44,144.4,6.9251]
[1728386642986,6.9234,144.44,144.41,3.90847158]
[1728386643218,6.9234,144.44,144.4,6.9251]
[1728386643219,6.9234,144.44,144.42,3.90847158]
[1728386643404,6.9234,144.44,144.4,6.9251]
[1728386643606,6.9234,144.44,144.41,3.90849428]
[1728386643806,6.9234,144.44,144.42,3.90849428]
[1728386644103,6.9234,144.44,144.4,6.9251]
[1728386644309,6.9234,144.44,144.41,3.90852974]
[1728386644489,6.9234,144.44,144.42,3.90852974]
[1728386644691,6.9234,144.44,144.4,6.9251]
[1728386644913,6.9234,144.44,144.41,3.90858655]
[1728386645113,6.9234,144.44,144.42,3.90858655]
[1728386645413,6.9234,144.44,144.4,6.9251]
[1728386645600,6.9234,144.44,144.41,3.9085866]
[1728386646009,6.9234,144.44,144.42,3.9085866]
[1728386646199,6.9234,144.44,144.4,6.9251]
[1728386646395,6.9234,144.44,144.41,3.90853444]
[1728386646619,6.9234,144.44,144.42,3.90853444]
[1728386646818,6.9234,144.44,144.4,8.30994611]
[1728386659927,0.12549,144.46,144.4,6.9251]
[1728386660153,6.9238,144.43,144.4,6.9251]
[1728386660537,6.9235,144.44,144.4,6.9251]
[1728386660735,6.9235,144.44,144.4,8.30994005]
[1728386661428,6.9235,144.44,144.39,17.3135]
[1728386661429,6.9241,144.43,144.39,24.2388]
[1728386666436,15.5276,144.43,144.37,8.31123162]
[1728386666637,21.9756,144.43,144.36,24.2435]
[1728386666838,0.12549,144.42,144.36,24.2435]
[1728386667021,6.9253,144.4,144.36,24.2435]
[1728386675240,6.9244,144.42,144.38,6.9258]
[1728386679851,15.5276,144.43,144.37,14.3007363]
[1728386680149,6.9242,144.42,144.39,6.9253]
[1728386680325,6.9242,144.42,144.38,18.69931234]
[1728386680525,6.9242,144.42,144.38,25.62531234]
[1728386680742,6.9242,144.42,144.38,24.2403]
[1728386681441,15.5276,144.43,144.38,24.2403]
[1728386681647,6.9247,144.41,144.38,24.2403]
[1728386682144,6.9247,144.41,144.38,17.3143]
[1728386683625,6.9247,144.41,144.38,18.69935952]
[1728386683825,6.9247,144.41,144.38,17.3143]
[1728386684140,6.9247,144.41,144.38,18.69935749]
[1728386684347,6.9247,144.41,144.38,17.3143]
[1728386686747,6.9252,144.4,144.36,6.9268]
[1728386687843,6.9257,144.39,144.36,6.9268]
[1728386688024,6.9257,144.39,144.35,30.23363135]
[1728386688232,6.9257,144.39,144.35,37.16103135]
[1728386689652,6.9257,144.39,144.35,24.2455]
[1728386690133,6.9257,144.39,144.35,25.63072303]
[1728386690530,6.9257,144.39,144.35,24.2455]
[1728386690945,6.9263,144.38,144.35,17.3181]
[1728386695955,6.9263,144.38,144.35,18.70342713]
[1728386696432,6.9263,144.38,144.35,25.63092713]
[1728386700265,6.9263,144.38,144.35,24.2456]
[1728386703267,6.9263,144.38,144.35,17.3181]
[1728386703652,6.9269,144.37,144.33,29.5507]
[1728386704757,6.9269,144.37,144.33,6.9282]
[1728386705773,6.9272,144.36,144.32,24.2505]
[1728386707867,17.3142,144.39,144.32,24.2505]
[1728386708168,6.9276,144.35,144.32,24.2505]
[1728386709163,6.9281,144.34,144.31,6.9293]
[1728386709365,6.9281,144.34,144.3,10.82910694]
[1728386710148,6.9281,144.34,144.3,3.89940694]
[1728386710460,6.9281,144.34,144.31,6.9294]
[1728386711048,6.9281,144.34,144.29,51.62103135]
[1728386711257,6.9281,144.34,144.31,6.9294]
[1728386712255,23.12259,144.38,144.31,6.9294]
[1728386712463,6.9278,144.35,144.31,6.9294]
[1728386714155,0.12549,144.37,144.31,6.9294]
[1728386714370,6.9281,144.34,144.31,6.9294]
[1728386714781,23.12259,144.38,144.3,1.38576864]
[1728386714982,6.9286,144.33,144.3,8.31556864]
[1728386715289,6.928,144.35,144.3,8.31556864]
[1728386715866,17.317,144.37,144.3,8.31556864]
[1728386715867,6.9281,144.34,144.3,8.31556864]
[1728386717010,6.9281,144.34,144.3,6.9298]
[1728386717162,6.9294,144.32,144.29,17.3252]
[1728386717887,6.9294,144.32,144.29,24.2555]
[1728386718883,6.9294,144.32,144.29,17.3252]
[1728386721092,6.9294,144.32,144.29,24.2556]
[1728386728691,6.9287,144.33,144.29,24.2556]
[1728386732399,6.9291,144.32,144.29,24.2556]
[1728386736007,6.9291,144.32,144.29,24.2556]
[1728386737005,0.12549,144.34,144.29,24.2556]
[1728386737312,6.9287,144.33,144.29,24.2556]
[1728386747103,6.929,144.32,144.29,24.2556]
[1728386750230,6.929,144.32,144.29,17.3252]
[1728386753914,6.929,144.32,144.29,24.2556]
[1728386754923,0.25098,144.34,144.29,24.2556]
[1728386755135,6.9287,144.33,144.29,24.2556]
[1728386755306,6.9287,144.33,144.3,3.90945054]
[1728386755507,6.9287,144.33,144.29,24.2556]
[1728386755807,6.9287,144.33,144.3,3.90941805]
[1728386756005,6.9287,144.33,144.29,24.2556]
[1728386756220,6.9287,144.33,144.3,3.90940608]
[1728386756524,6.9287,144.33,144.29,24.2556]
[1728386756729,6.9287,144.33,144.3,3.90958287]
[1728386756911,6.9287,144.33,144.29,24.2556]
[1728386757231,6.9287,144.33,144.3,3.90960749]
[1728386757523,6.9287,144.33,144.29,24.2556]
[1728386757726,6.9287,144.33,144.3,3.90983533]
[1728386757928,6.9287,144.33,144.29,24.2556]
[1728386758103,6.9287,144.33,144.3,3.90982209]
[1728386758307,6.9287,144.33,144.29,24.2556]
[1728386758523,6.9287,144.33,144.3,3.90992596]
[1728386758720,6.9287,144.33,144.29,24.2556]
[1728386758919,6.9287,144.33,144.3,3.90992596]
[1728386759119,6.9287,144.33,144.29,24.2556]
[1728386759435,6.9287,144.33,144.3,3.91018596]
[1728386759723,6.9287,144.33,144.29,24.2556]
[1728386760025,6.9287,144.33,144.3,3.91016852]
[1728386760204,6.9287,144.33,144.29,24.2556]
[1728386760405,6.9287,144.33,144.3,3.910325]
[1728386760629,6.9287,144.33,144.29,24.2556]
[1728386760832,6.9287,144.33,144.3,3.9103159]
[1728386761129,6.9287,144.33,144.29,24.2556]
[1728386761327,6.9287,144.33,144.3,3.91046266]
[1728386761507,6.9287,144.33,144.29,24.2556]
[1728386761707,6.9287,144.33,144.3,3.91027283]
[1728386761923,6.9287,144.33,144.29,24.2556]
[1728386762121,6.9287,144.33,144.3,3.91027742]
[1728386762326,6.9287,144.33,144.29,24.2556]
[1728386762626,6.9287,144.33,144.3,3.91021927]
[1728386762939,6.9287,144.33,144.29,24.2556]
[1728386763329,6.9287,144.33,144.3,3.90981563]
[1728386763629,6.9287,144.33,144.29,24.2556]
[1728386763832,6.9287,144.33,144.3,3.91012126]
[1728386764003,6.9287,144.33,144.29,24.2556]
[1728386764304,6.9287,144.33,144.3,3.91013711]
[1728386764510,6.9287,144.33,144.29,24.2556]
[1728386764704,6.9287,144.33,144.3,3.91088162]
[1728386764923,6.9287,144.33,144.29,24.2556]
[1728386765233,6.9287,144.33,144.3,3.910873]
[1728386765407,6.9287,144.33,144.29,24.2556]
[1728386765607,6.9287,144.33,144.3,3.91104877]
[1728386765807,6.9287,144.33,144.29,24.2556]
[1728386766132,6.9287,144.33,144.3,3.91101054]
[1728386766437,6.9287,144.33,144.29,24.2556]
[1728386766731,6.9287,144.33,144.3,3.91093018]
[1728386766915,6.9287,144.33,144.29,24.2556]
[1728386767115,6.9287,144.33,144.3,3.9109296]
[1728386767318,6.9287,144.33,144.29,24.2556]
[1728386767623,6.9287,144.33,144.3,3.91100524]
[1728386767806,6.9287,144.33,144.29,24.2556]
[1728386768928,7.23089288,144.37,144.34,6.9276]
[1728386769126,6.9249,144.41,144.36,6.9271]
[1728386769428,6.9249,144.41,144.37,6.9265]
[1728386771940,7.04979,144.42,144.38,6.9261]
[1728386774131,7.04979,144.42,144.37,24.2426]
[1728386774437,6.9248,144.41,144.37,24.2426]
[1728386781336,6.9255,144.4,144.36,28.442]
[1728386782314,6.9255,144.4,144.36,22.1535]
[1728386782519,0.12549,144.41,144.34,17.3192]
[1728386782772,6.9265,144.38,144.34,24.247]
[1728386783541,6.9265,144.38,144.34,30.23473135]
[1728386783736,6.9265,144.38,144.35,6.9275]
[1728386787645,6.9258,144.39,144.35,19.84303135]
[1728386788449,6.9258,144.39,144.35,6.9275]
[1728386788853,6.9262,144.38,144.35,6.9275]
[1728386792223,0.25098,144.39,144.33,22.4574]
[1728386792631,6.9271,144.36,144.33,16.0757]
[1728386792846,6.9271,144.36,144.32,6.9289]
[1728386797791,6.9276,144.35,144.32,19.84443135]
[1728386801964,6.9268,144.37,144.33,21.22957618]
[1728386802145,6.9268,144.37,144.33,14.30117618]
[1728386802348,6.9268,144.37,144.34,6.9279]
[1728386802738,20.0,144.39,144.34,6.9279]
[1728386802739,6.9264,144.38,144.34,19.84343135]
[1728386802946,6.9264,144.38,144.34,21.22888017]
[1728386803443,6.9264,144.38,144.34,19.84343135]
[1728386803644,20.12549,144.39,144.34,12.91553135]
[1728386803839,6.9268,144.37,144.33,37.16473135]
[1728386806660,6.9268,144.37,144.33,24.2492]
[1728386807255,0.12549,144.38,144.33,17.3209]
[1728386807463,6.9271,144.36,144.33,17.3209]
[1728386815071,6.9271,144.36,144.33,31.62198625]
[1728386815750,6.9271,144.36,144.33,30.23643135]
[1728386817759,6.9271,144.36,144.33,37.16493135]
[1728386821579,6.9268,144.37,144.33,37.16493135]
[1728386822067,0.25098,144.38,144.33,37.16493135]
[1728386822268,6.9271,144.36,144.33,37.16493135]
[1728386828079,20.12549,144.39,144.34,1.38554624]
[1728386828254,6.9266,144.38,144.34,8.31344624]
[1728386828580,6.9267,144.37,144.34,8.31344624]
[1728386829981,6.9263,144.38,144.34,8.31344624]
[1728386835328,20.12549,144.39,144.35,4.83310159]
[1728386835468,6.9266,144.37,144.34,8.31344624]
[1728386835991,6.9266,144.37,144.33,37.16473135]
[1728386836173,6.9266,144.37,144.34,4.83254997]
[1728386836490,6.9266,144.37,144.33,37.16473135]
[1728386836687,6.9266,144.37,144.34,8.7409103]
[1728386836978,20.12549,144.39,144.33,37.16473135]
[1728386836979,6.9271,144.36,144.33,37.16473135]
[1728386837185,6.9271,144.36,144.34,8.74077839]
[1728386837378,6.9271,144.36,144.35,4.83357243]
[1728386837578,6.9271,144.36,144.33,37.16473135]
[1728386837886,6.9271,144.36,144.34,8.74369958]
[1728386838062,6.9271,144.36,144.33,37.16473135]
[1728386838261,6.9271,144.36,144.34,8.74342331]
[1728386838564,6.9271,144.36,144.35,4.83508056]
[1728386839184,6.9271,144.36,144.32,6.9288]
[1728386839496,6.9271,144.36,144.33,5.13502189]
[1728386839690,6.9271,144.36,144.34,4.8370329]
[1728386839866,6.9271,144.36,144.32,6.9288]
[1728386840068,6.9271,144.36,144.33,13.8819137]
[1728386840376,6.9271,144.36,144.34,8.74694323]
[1728386840563,6.9271,144.36,144.32,6.9288]
[1728386840763,6.9271,144.36,144.33,8.74688043]
[1728386841065,6.9271,144.36,144.34,8.74688043]
[1728386841377,6.9271,144.36,144.33,12.91553135]
[1728386841697,6.9266,144.37,144.34,8.74682316]
[1728386841990,6.9266,144.37,144.35,8.74682316]
[1728386842203,6.9266,144.37,144.34,1.38542227]
[1728386842372,6.9266,144.37,144.35,8.74507221]
[1728386842565,6.9266,144.37,144.34,1.38542227]
[1728386842893,6.9264,144.38,144.35,17.75149826]
[1728386843079,6.9266,144.37,144.36,4.83596691]
[1728386843791,6.9263,144.38,144.36,4.83596691]
[1728386843996,6.9263,144.38,144.34,21.22895362]
[1728386844294,6.9263,144.38,144.35,4.83516501]
[1728386844486,6.9263,144.38,144.36,4.83516501]
[1728386844686,6.9263,144.38,144.34,21.22895362]
[1728386844887,6.9263,144.38,144.35,4.83485197]
[1728386845080,6.9263,144.38,144.34,21.22895362]
[1728386849397,6.9263,144.38,144.34,19.84353135]
[1728386851385,6.9266,144.37,144.34,19.84353135]
[1728386851595,6.9266,144.37,144.34,6.928]
[1728386854824,6.9266,144.37,144.34,21.22888214]
[1728386855713,17.3136,144.4,144.34,21.22888214]
[1728386855894,6.9263,144.38,144.34,21.22888214]
[1728386863898,6.9263,144.38,144.34,19.84353135]
[1728386864605,6.9266,144.37,144.34,19.84353135]
[1728386866297,6.9266,144.37,144.33,6.9284]
[1728386866626,6.9273,144.36,144.32,37.16663135]
[1728386871409,6.9273,144.36,144.33,1.3855109]
[1728386871717,0.25098,144.39,144.33,21.22954225]
[1728386871895,6.9268,144.37,144.33,21.22954225]
[1728386874317,6.9264,144.38,144.34,6.9277]
[1728386874526,6.9264,144.38,144.35,1.38532503]
[1728386874726,6.9264,144.38,144.34,19.84323135]